Cogmind - Beta 11.1 @@@ ROGUE MODE // 2022.05.02 @ 10:32:02 Player: Olga Result: Self-destructed Performance ------------- Evolutions (3) 1500 Regions Visited (6) 1200 Robots Destroyed (7) 35 Value Destroyed (70) 70 Prototype IDs (0) 0 Alien Tech Used (0) 0 Bonus (0) 0 TOTAL SCORE: 2805 Bonus ------- None Cogmind --------- Core Integrity 700/700 Matter 167/300 Energy 100/100 System Corruption 0% Temperature Cool (0) Movement Flying (40) Location -7/Factory Parts ------- > --- POWER (1) -------- (None) > --- PROPULSION (4) --- Flight Unit > --- UTILITY (6) ------ Advanced Visual Processing Unit Targeting Computer Launcher Guidance Computer Core Analyzer Propulsion Shielding > --- WEAPON (2) ------- Light Assault Rifle > --- INVENTORY (5) ---- Light Nuclear Core Gauss Cannon Gauss Cannon Peak State ------------ > --- POWER ------------ Improved Ion Engine > --- PROPULSION ------- Airjet Airjet Airjet Airjet > --- UTILITY ---------- Advanced Visual Processing Unit Targeting Computer Propulsion Shielding Improved Light Armor Plating > --- WEAPON ----------- Assault Rifle Assault Rifle > --- INVENTORY -------- Airjet Airjet Airjet Airjet Flight Unit [Rating: 25] Favorites ----------- Power Improved Ion Engine Engine Improved Ion Engine Power Core Light Nuclear Core Propulsion Flight Unit Hover Unit Airjet Flight Unit Flight Unit Utility Targeting Computer Processor Targeting Computer Protection Propulsion Shielding Weapon Assault Rifle Ballistic Gun Assault Rifle Build | -11 -10 -10 -10 -9 -8 -7 ------- Run | Scr Mat Min Exi Min Mat Fac Slots Evolved 6 | . . . . . 4 2 Power . | . . . . . . . Propulsion 2 | . . . . . 2 . Utility 4 | . . . . . 2 2 Weapon . | . . . . . . . Parts Attached 27 | 1 1 3 . . 18 4 Power 3 | . . . . . 2 1 Engine 2 | . . . . . 2 . Core 1 | . . . . . . 1 Reactor . | . . . . . . . Propulsion 12 | . . 1 . . 11 . Treads . | . . . . . . . Leg . | . . . . . . . Wheel . | . . . . . . . Hover 4 | . . . . . 4 . Flight 8 | . . 1 . . 7 . Utility 7 | . . 2 . . 3 2 Device . | . . . . . . . Storage . | . . . . . . . Processor 4 | . . 1 . . 1 2 Hackware . | . . . . . . . Protection 3 | . . 1 . . 2 . Artifact . | . . . . . . . Weapon 5 | 1 1 . . . 2 1 Energy Gun . | . . . . . . . Energy Cannon . | . . . . . . . Ballistic Gun 5 | 1 1 . . . 2 1 Ballistic Cannon . | . . . . . . . Launcher . | . . . . . . . Special Weapon . | . . . . . . . Impact Weapon . | . . . . . . . Slashing Weapon . | . . . . . . . Piercing Weapon . | . . . . . . . Special Melee Weapon . | . . . . . . . Unidentified Prototypes . | . . . . . . . Parts Lost 10 | . . . . . 10 . Power 1 | . . . . . 1 . Propulsion 6 | . . . . . 6 . Utility 1 | . . . . . 1 . Weapon 2 | . . . . . 2 . Highest Loss Streak 10 | . . . . . 10 . To Critical Strikes . | . . . . . . . Average Slot Usage (%) 63 | . 23 46 71 71 85 40 Engine 3 | . . . . . 7 . Hover 7 | . . . . . 16 . Flight 8 | . . 3 14 14 12 7 Processor 13 | . . 13 14 14 15 17 Protection 10 | . . 2 14 14 17 7 Ballistic Gun 19 | . 23 28 28 28 16 7 Naked Turns . | . . . . . . . Heaviest Build 16 | 2 3 4 4 4 16 2 Greatest Support 32 | 3 3 4 4 4 32 4 Greatest Overweight (x) 2 | . . . . . 2 . Average Overweight (x) . | . . . . . . . Largest Inventory Capacity 5 | 5 5 5 5 5 5 5 Average Capacity 5 | 5 5 5 5 5 5 5 Most Carried 5 | 4 4 5 4 5 5 3 Average Carried 3 | 4 4 4 4 4 3 2 Final Capacity 5 | 5 5 5 5 5 5 5 Final Carried 5 | 4 4 4 4 5 3 3 Class Distribution -------------------- 81% | Mutant 18% | Scavenger-Mutant Dominant Class ---------------- Mutant | -10/Materials Mutant | -10/Mines Mutant | -10/Exiles Mutant | -9/Mines Mutant | -8/Materials Mutant | -7/Factory Resources | -11 -10 -10 -10 -9 -8 -7 ----------- Run | Scr Mat Min Exi Min Mat Fac Matter Collected 395 | 200 . 62 . . 133 . Remotely . | . . . . . . . Salvage Created 122 | . . 20 . . 102 . Parts 12 | . . 1 . . 11 . Haulers Intercepted . | . . . . . . . Recyclers Shooed 1 | . . . . . 1 . Parts Field Recycled . | . . . . . . . Retrieved Matter . | . . . . . . . Parts Self-Destructed . | . . . . . . . Prevented . | . . . . . . . Kills | -11 -10 -10 -10 -9 -8 -7 ------- Run | Scr Mat Min Exi Min Mat Fac Combat Hostiles Destroyed 7 | . . 1 . . 6 . Guns 7 | . . 1 . . 6 . Classes Destroyed 1 | . . 1 . . . . Swarmer 7 | . . 1 . . 6 . Best Kill Streak 3 | . . 1 . . 3 . Combat Bots Only 3 | . . 1 . . 3 . Max Kills in Single Turn 1 | . . 1 . . 1 . Gunslinging . | . . . . . . . Exploded . | . . . . . . . Melee . | . . . . . . . Uniques/NPCs Destroyed . | . . . . . . . Combat | -11 -10 -10 -10 -9 -8 -7 -------- Run | Scr Mat Min Exi Min Mat Fac Damage Taken 788 | . . 25 . . 763 . Core 168 | . . 7 . . 161 . Absorbed by Shields . | . . . . . . . Redirected to Shielding 47 | . . . . . 47 . Core Remaining (%) 89 | 100 . . . 97 70 . Volleys Fired 20 | . . 3 . . 17 . Largest 2 | . . 2 . . 2 . Hottest 40 | . . 40 . . 40 . Shots Fired 38 | . . 6 . . 32 . Gun 38 | . . 6 . . 32 . Cannon . | . . . . . . . Launcher . | . . . . . . . Special . | . . . . . . . Kinetic 38 | . . 6 . . 32 . Thermal . | . . . . . . . Explosive . | . . . . . . . Electromagnetic . | . . . . . . . Robot Hit Streak 7 | . . 2 . . 7 . Robot Miss Streak 4 | . . 1 . . 4 . Penetration Max . | . . . . . . . Secondary Targets 1 | . . . . . 1 . Max Gunslinging Chain 1 | . . . . . 1 . Shots Hit Robots 22 | . . 3 . . 19 . Core Hits 10 | . . 2 . . 8 . Critical Kills . | . . . . . . . Critical Parts Destroyed . | . . . . . . . Critical Strikes . | . . . . . . . Melee Attacks . | . . . . . . . Impact . | . . . . . . . Slashing . | . . . . . . . Piercing . | . . . . . . . Sneak Attacks . | . . . . . . . Combat Hostiles . | . . . . . . . Follow-up Attacks . | . . . . . . . Damage Inflicted 275 | . . 26 . . 249 . Guns 275 | . . 26 . . 249 . Cannons . | . . . . . . . Explosions . | . . . . . . . Melee . | . . . . . . . Ramming . | . . . . . . . Kinetic 275 | . . 26 . . 249 . Thermal . | . . . . . . . Explosive . | . . . . . . . Electromagnetic . | . . . . . . . Impact . | . . . . . . . Slashing . | . . . . . . . Piercing . | . . . . . . . Highest Corruption . | . . . . . . . Average Corruption . | . . . . . . . Corruption Purged . | . . . . . . . Corruption Blocked . | . . . . . . . Overload Shots . | . . . . . . . Overflow Damage . | . . . . . . . Projectiles . | . . . . . . . Explosions . | . . . . . . . Melee . | . . . . . . . Knockbacks . | . . . . . . . Impact . | . . . . . . . Kinetic . | . . . . . . . Secondary . | . . . . . . . Self-Inflicted Damage . | . . . . . . . Shots . | . . . . . . . Rammed . | . . . . . . . Targets Rammed . | . . . . . . . Kicked . | . . . . . . . Crushed . | . . . . . . . Highest Temperature 6 | . . . . . 6 . Average Temperature 3 | . . . . . 3 . Received Heat Transfer 144 | . . . . . 144 . Siege Activations . | . . . . . . . Robots Corrupted . | . . . . . . . Combat Hostiles . | . . . . . . . Parts Fried . | . . . . . . . Impact Corruptions . | . . . . . . . Robots Melted . | . . . . . . . Combat Hostiles . | . . . . . . . Parts Melted . | . . . . . . . Heat Transferred . | . . . . . . . Parts Sabotaged . | . . . . . . . Parts Stolen . | . . . . . . . Parts Stripped . | . . . . . . . Power Chain Reactions . | . . . . . . . Missiles Intercepted . | . . . . . . . Alert | -11 -10 -10 -10 -9 -8 -7 ------- Run | Scr Mat Min Exi Min Mat Fac Peak Influence 216 | . . 30 . . 216 70 Initial 70 | . . . . . . 70 Average 48 | . . 8 . . 78 70 Maximum Alert Level 1 | . . . . . 1 . Low Security (%) 97 | 100 100 100 . 100 94 100 Level 1 2 | . . . . . 5 . Level 2 . | . . . . . . . Level 3 . | . . . . . . . Level 4 . | . . . . . . . Level 5 . | . . . . . . . High Security . | . . . . . . . Max Security . | . . . . . . . Squads Dispatched 1 | . . . . . 1 . Investigation . | . . . . . . . Extermination . | . . . . . . . Reinforcement 1 | . . . . . 1 . Assault . | . . . . . . . Garrison . | . . . . . . . Intercept . | . . . . . . . Searches Triggered . | . . . . . . . Construction Impeded . | . . . . . . . Haulers Reinforced . | . . . . . . . Active Scanning Responses . | . . . . . . . Cargo Convoy Interrupts . | . . . . . . . Stealth | -11 -10 -10 -10 -9 -8 -7 --------- Run | Scr Mat Min Exi Min Mat Fac Distress Signals . | . . . . . . . Communications Jammed . | . . . . . . . Distress Signals . | . . . . . . . Times Spotted 33 | . . 11 . . 22 . Peak Tracking Total 14 | . . 14 . . 13 . Tactical Retreats 3 | . . 1 . . 2 . Traps | -11 -10 -10 -10 -9 -8 -7 ------- Run | Scr Mat Min Exi Min Mat Fac Traps Triggered 1 | . . . . . . 1 Indirectly . | . . . . . . . Trap Hack Attempts . | . . . . . . . Triggered . | . . . . . . . Disarmed . | . . . . . . . Reprogrammed . | . . . . . . . Reused . | . . . . . . . Traps Extracted . | . . . . . . . Installed . | . . . . . . . Triggered . | . . . . . . . Most Traps Carried 3 | . . . . 3 3 . Machines | -11 -10 -10 -10 -9 -8 -7 ---------- Run | Scr Mat Min Exi Min Mat Fac Machines Disabled . | . . . . . . . Max in Single Turn . | . . . . . . . Machines Sabotaged . | . . . . . . . Garrisons Compromised . | . . . . . . . Overloaded Fab Kills . | . . . . . . . Hacking | -11 -10 -10 -10 -9 -8 -7 --------- Run | Scr Mat Min Exi Min Mat Fac Machines Accessed 1 | . . . . . 1 . Terminals 1 | . . . . . 1 . Fabricators . | . . . . . . . Repair Stations . | . . . . . . . Recycling Units . | . . . . . . . Scanalyzers . | . . . . . . . Garrison Access . | . . . . . . . Total Hacks 2 | . . . . . 2 . Successful 1 | . . . . . 1 . Failed 1 | . . . . . 1 . Catastrophic 1 | . . . . . 1 . Database Lockouts . | . . . . . . . Manual 1 | . . . . . 1 . Terminals 2 | . . . . . 2 . Fabricators . | . . . . . . . Repair Stations . | . . . . . . . Recycling Units . | . . . . . . . Scanalyzers . | . . . . . . . Garrison Access . | . . . . . . . Terminal Hacks 1 | . . . . . 1 . Zone Layout 1 | . . . . . 1 . Fabricator Hacks . | . . . . . . . Repair Station Hacks . | . . . . . . . Recycling Unit Hacks . | . . . . . . . Scanalyzer . | . . . . . . . Garrison Access Hacks . | . . . . . . . Unauthorized Hacks . | . . . . . . . Terminals . | . . . . . . . Fabricators . | . . . . . . . Repair Stations . | . . . . . . . Recycling Units . | . . . . . . . Scanalyzers . | . . . . . . . Garrison Access . | . . . . . . . Data Cores Recovered . | . . . . . . . Used . | . . . . . . . Hacking Detections 1 | . . . . . 1 . Full Trace Events . | . . . . . . . Feedback Events . | . . . . . . . Feedback Blocked . | . . . . . . . Robot Schematics Acquired . | . . . . . . . Robots Built . | . . . . . . . Authchips . | . . . . . . . Time . | . . . . . . . Total Robot Build Rating . | . . . . . . . Part Schematics Acquired . | . . . . . . . Parts Built . | . . . . . . . Authchips . | . . . . . . . Time . | . . . . . . . Total Part Build Rating . | . . . . . . . Parts Repaired . | . . . . . . . Time . | . . . . . . . Parts Recycled . | . . . . . . . Recycled Matter . | . . . . . . . Retrieved Matter . | . . . . . . . Retrieved Components . | . . . . . . . Parts Scanalyzed . | . . . . . . . Part Schematics Acquired . | . . . . . . . Parts Damaged . | . . . . . . . Bothacking | -11 -10 -10 -10 -9 -8 -7 ------------ Run | Scr Mat Min Exi Min Mat Fac Used RIF Installer . | . . . . . . . Robots Hacked . | . . . . . . . Non-combat . | . . . . . . . Combat . | . . . . . . . Robot Hacks Applied . | . . . . . . . Relay Couplers Released . | . . . . . . . Fabnet Peak Effective % . | . . . . . . . Robots Rewired . | . . . . . . . Allies Hacked . | . . . . . . . Hacks Repelled . | . . . . . . . Allies | -11 -10 -10 -10 -9 -8 -7 -------- Run | Scr Mat Min Exi Min Mat Fac Total Allies 1 | . . . . 1 . . Largest Group . | . . . . . . . Highest-Rated Group . | . . . . . . . Highest-Rated Ally . | . . . . . . . Total Orders . | . . . . . . . Ally Attacks . | . . . . . . . Total Damage . | . . . . . . . Kills . | . . . . . . . Allies Corrupted . | . . . . . . . Allies Melted . | . . . . . . . Intel | -11 -10 -10 -10 -9 -8 -7 ------- Run | Scr Mat Min Exi Min Mat Fac Robot Analysis Total . | . . . . . . . Derelict Logs Recovered . | . . . . . . . Drone Launches . | . . . . . . . Drone Recoveries . | . . . . . . . Exploration | -11 -10 -10 -10 -9 -8 -7 ------------- Run | Scr Mat Min Exi Min Mat Fac Turns Passed 503 | 1 36 137 12 22 229 66 Spaces Moved 710 | 1 68 171 29 45 269 127 Core 163 | 1 68 93 . . 1 . Treads . | . . . . . . . Legs . | . . . . . . . Wheels . | . . . . . . . Hover 125 | . . . . . 125 . Flight 422 | . . 78 29 45 143 127 Fastest Speed 31 | 50 50 40 40 40 31 40 Average Speed 44 | 50 50 45 40 40 44 40 Slowest Speed 200 | 50 50 50 40 40 200 40 Overloaded Moves . | . . . . . . . Propulsion Burnouts . | . . . . . . . Robots Hopped 8 | . . . . 3 5 . Cave-ins Triggered . | . . . . . . . Exploration Rate (%) 15 | 2 28 22 8 12 26 7 Regions Visited 6 Branch Regions 3 Pre-discovered Areas . | . . . . . . . Known Exits Taken . | . . . . . . . Unknown Exits Taken 6 | 1 1 1 1 1 1 . Scrap Searched 1 | . . 1 . . . . Spaces Dug . | . . . . . . . Terrain Destroyed . | . . . . . . . Melee . | . . . . . . . Projectile . | . . . . . . . AOE . | . . . . . . . Terrain Rammed . | . . . . . . . Walls Destroyed . | . . . . . . . Machines Disabled . | . . . . . . . Actions | -11 -10 -10 -10 -9 -8 -7 --------- Run | Scr Mat Min Exi Min Mat Fac Total 849 | 1 68 224 28 46 341 141 Wait 60 | . . 41 . . 19 . Move 688 | . 67 170 28 38 258 127 Hop 8 | . . . . 3 5 . Pick Up 15 | . . 4 . 3 8 . Fast Attach 20 | . 1 2 . . 14 3 Attach 6 | 1 . 1 . . 3 1 Detach 1 | . . . . . . 1 Swap 1 | . . . . . 1 . Drop 21 | . . 3 . 2 16 . Fire 20 | . . 3 . . 17 . Melee . | . . . . . . . Ram . | . . . . . . . Kick . | . . . . . . . Crush . | . . . . . . . Escape Stasis 9 | . . . . . . 9 Rewire . | . . . . . . . Trap . | . . . . . . . Miscellaneous . | . . . . . . . Route ------- -11/Scrapyard -10/Materials -10/Mines -10/Exiles -9/Mines -8/Materials -7/Factory History --------- Turn | Location | Event 1 | -11/Scrapyard | Released all parts (6) 2 | -11/Scrapyard | Discovered new exit (range 0) 2 | -11/Scrapyard | Entered Materials 34 | -10/Materials | Discovered new exit (range 8) 38 | -10/Materials | Entered Mines 42 | -10/Mines | Joined a pair of Derelicts in attacking an 0b10 outpost 148 | -10/Mines | Assembled infested the area 173 | -10/Mines | Discovered new exit (range 5) 175 | -10/Mines | Entered Exiles 181 | -10/Exiles | Discovered new exit (range 14) 187 | -10/Exiles | Entered Mines 198 | -9/Mines | Discovered new exit (range 8) 200 | -9/Mines | Found a hidden stash of uninstalled traps 203 | -9/Mines | Received a Mining Laser from a helpful Derelict 209 | -9/Mines | Entered Materials 209 | -8/Materials | Evolved 4 slots: Propulsion x2, Utility x2 315 | -8/Materials | Build established: Mutant 431 | -8/Materials | Discovered new exit (range 19) 438 | -8/Materials | Entered Factory 438 | -7/Factory | Evolved 2 slots: Utility x2 454 | -7/Factory | Lost 10 parts (1p6n1u2w) 504 | -7/Factory | Self-destructed Last Messages --------------- 00495_ Field strength at 95. 00495_ K-01 Serf pushes Y-54 Guardian. 00495_ Field strength at 90. 00496_ K-01 Serf pushes Y-54 Guardian. 00496_ Field strength at 85. 00497_ K-01 Serf pushes Y-54 Guardian. 00497_ Field strength at 80. 00498_ K-01 Serf pushes Y-54 Guardian. 00498_ Field strength at 75. 00499_ K-01 Serf pushes Y-54 Guardian. 00499_ Field strength at 70. 00499_ K-01 Serf pushes Y-54 Guardian. 00500_ Field strength at 65. 00501_ K-01 Serf pushes Y-54 Guardian. 00501_ Field strength at 60. 00502_ K-01 Serf pushes Y-54 Guardian. 00502_ Field strength at 55. 00503_ K-01 Serf pushes Y-54 Guardian. 00503_ Field strength at 50. 00503_ K-01 Serf pushes Y-54 Guardian. Map ----- +----------------------------------------------------+ | ?????????????????????????????????????????????????? | | ?????????????????????????????????????????????????? | | ?????????????????????????????????????????????????? | | ?????????????????????????????????????????????????? | | ?????????????????????????????????????????????????? | | ?????????????????????????????????????????????????? | | ?????????????????????????????????????????????????? | | ?????????????????????????????????????????????????? | | ?????????????????????????????????????????????????? | | ?????????????????????????????????????????????????? | | ?????????????????????????????????????????????????? | | ?????????????????????????????????????????????????? | | ?????????????????????????????????????????????????? | | ?????????????????????????????????????????????????? | | ?????????????????????????????????????????????????? | | ?????????????????????????????????????????????????? | | ????????????????????????????????#????????????????? | | ??????????????????????????????? #????????????????? | | ??????????????????????????????? #????????????????? | | ?????????????????????????????? #????????????????? | | ??????????????????############ a#??####??????????? | | ????????????####### k ## ???????????? | | ??????????? ! kY #?????????????? | | ?????????? ^ #?????????????? | | ??????????? "" #?????????????? | | ??????????????????# "F @ """" #?????????????? | | ????################t """ !! """" #?????????????? | | ????# # """ """" #?????????????? | | ????# # #?????????????? | | #???# + #?????????????? | | #???# # ######## #?????????????? | | #???# ### #????????## #?????????????? | | #???# #?# #???????????#?????????????? | | #???######+#####+##### #?????????????????????????? | | #???????## ### #?????????????????????????? | | #???????# #?????????????????????????? | | #???????# #?????????????????????????? | | #???????# #?????????????????????????? | | #???????# #?????????????????????????? | | ######### #####?????????????????????????? | | #?????????????????????????????? | | #?????????????????????????????? | | #?????????????????????????????? | | #?????????????????????????????? | | #?????????????????????????????? | | #?????????????????????????????? | | #?????????????????????????????? | | #?????????????????????????????? | | #?????????????????????????????? | | #?????????????????????????????? | +----------------------------------------------------+ Best States ------------- Heat Dissipation 34 Energy Generation 12 Energy Capacity 265 Matter Stores 300 Matter Capacity 300 Sight Range 20 Terrain Scan Density 10 Armor Coverage 150 Propulsion Shielding 33 Evasion (%) 63 Targeting Accuracy 5 Launcher Accuracy 20 Core Analysis 6 Item Schematics ----------------- None Robot Schematics ------------------ None Fabricated ------------ Nothing Alien Tech Used ----------------- None Achievements -------------- None Challenges ------------ None Game ------ Seed PlasmaXenonCutter Manual? 0 Play Time 00:09:41 Cumulative 158.3 hours Start 2022.05.02 @ 10:23:16 End 2022.05.02 @ 10:32:02 Sessions 1 Manual Loads 0 Difficulty Rogue Special Mode None Game No. 251 Rogue 250 Adventurer 0 Explorer 1 Win Type - Total 7 Types 7/0/0/0/0/0/0/0/0 Lore% 60 Gallery% 63 Achievement% 53 Wizard Run 0 Options --------- ASCII 1 Keyboard 0 Movement Vi Keybinds 0 Fullscreen 1 Font 18/SmallcapsGlow Map View 76x50 Tactical HUD 1 Map Filters NONE Filters NONE Steam 1 RUN: e65deca3-1d0a-4efd-85f2-48a93a5ee80c